Cogmind - Beta 9.6 @@@ ROGUE MODE // 2020.07.12 @ 19:00:50 Player: Lyft Result: Destroyed by S-10 Pest with Light Assault Rifle Performance ------------- Evolutions (0) 0 Regions Visited (1) 200 Robots Destroyed (7) 35 Value Destroyed (75) 75 Prototype IDs (0) 0 Alien Tech Used (0) 0 Bonus (0) 0 TOTAL SCORE: 310 Bonus ------- None Cogmind --------- Core Integrity 0/250 Matter 178/300 Energy 100/100 System Corruption 0% Temperature Cool (0) Movement Core (150) Ox2 Location -10/Materials Parts ------- > --- POWER (1) -------- (None) > --- PROPULSION (2) --- (None) > --- UTILITY (2) ------ Small Storage Unit Small Storage Unit > --- WEAPON (2) ------- (None) > --- INVENTORY (8) ---- Light Treads Peak State ------------ > --- POWER ------------ Light Ion Engine > --- PROPULSION ------- Aluminum Leg Aluminum Leg > --- UTILITY ---------- Small Storage Unit Small Storage Unit > --- WEAPON ----------- Small Laser Small Laser > --- INVENTORY -------- Light Ion Engine Light Treads Light Treads Wheel Compact Wheel Light Assault Rifle [Rating: 7] Favorites ----------- Power Light Ion Engine Engine Light Ion Engine Propulsion Compact Wheel Treads Light Treads Leg Aluminum Leg Wheel Compact Wheel Utility Small Storage Unit Storage Small Storage Unit Weapon Small Laser Energy Gun Small Laser Ballistic Gun Light Assault Rifle Build | -11 -10 ------- Run | Scr Mat Slots Evolved . | . . Power . | . . Propulsion . | . . Utility . | . . Weapon . | . . Parts Attached 14 | 6 8 Power 2 | . 2 Engine 2 | . 2 Core . | . . Reactor . | . . Propulsion 5 | 3 2 Treads 1 | 1 . Leg 1 | 1 . Wheel 3 | 1 2 Hover . | . . Flight . | . . Utility 4 | 1 3 Device . | . . Storage 4 | 1 3 Processor . | . . Hackware . | . . Protection . | . . Artifact . | . . Weapon 3 | 2 1 Energy Gun 2 | 1 1 Energy Cannon . | . . Ballistic Gun 1 | 1 . Ballistic Cannon . | . . Launcher . | . . Special Weapon . | . . Impact Weapon . | . . Slashing Weapon . | . . Piercing Weapon . | . . Special Melee Weapon . | . . Unidentified Prototypes . | . . Parts Lost 3 | . 3 Power 1 | . 1 Propulsion 2 | . 2 Utility . | . . Weapon . | . . Highest Loss Streak 2 | . 2 Average Slot Usage (%) 74 | . 74 Engine 11 | . 11 Treads 6 | . 6 Wheel 14 | . 14 Storage 27 | . 27 Energy Gun 6 | . 6 Ballistic Gun 6 | . 6 Naked Turns . | . . Heaviest Build 13 | 13 13 Greatest Support 32 | 20 32 Greatest Overweight (x) 3 | 1 3 Average Overweight (x) . | . . Largest Inventory Capacity 8 | 8 8 Average Capacity 7 | 7 7 Most Carried 8 | 8 5 Average Carried 2 | 5 2 Final Capacity 8 | 8 8 Final Carried 4 | 4 1 Class Distribution -------------------- 100% | Mutant Dominant Class ---------------- Mutant | -10/Materials Resources | -11 -10 ----------- Run | Scr Mat Matter Collected 200 | 200 . Remotely . | . . Salvage Created 248 | 60 188 Parts 8 | 2 6 Haulers Intercepted . | . . Recyclers Shooed 1 | . 1 Parts Field Recycled . | . . Retrieved Matter . | . . Parts Self-Destructed . | . . Prevented . | . . Kills | -11 -10 ------- Run | Scr Mat Combat Hostiles Destroyed 3 | . 3 Guns 2 | . 2 AOE 1 | . 1 Classes Destroyed 3 | 1 2 Tunneler 1 | . 1 Recycler 3 | 1 2 Swarmer 3 | . 3 Best Kill Streak 6 | 1 6 Combat Bots Only 2 | . 2 Max Kills in Single Turn 3 | 1 3 Gunslinging 1 | . 1 Exploded 1 | . 1 Melee . | . . Uniques/NPCs Destroyed . | . . Combat | -11 -10 -------- Run | Scr Mat Damage Taken 613 | . 613 Core 251 | . 251 Absorbed by Shields . | . . Core Remaining (%) 100 | 100 . Volleys Fired 13 | 1 12 Largest 2 | 2 2 Hottest 80 | 80 60 Shots Fired 26 | 2 24 Gun 26 | 2 24 Cannon . | . . Launcher . | . . Special . | . . Kinetic 12 | . 12 Thermal 14 | 2 12 Explosive . | . . Electromagnetic . | . . Robot Hit Streak 4 | 2 4 Robot Miss Streak 3 | . 3 Penetration Max . | . . Secondary Targets 1 | . 1 Max Gunslinging Chain 1 | . 1 Shots Hit Robots 15 | 2 13 Core Hits 14 | 2 12 Critical Hits . | . . Critical Kills . | . . Critical Parts Destroyed . | . . Melee Attacks . | . . Impact . | . . Slashing . | . . Piercing . | . . Sneak Attacks . | . . Combat Hostiles . | . . Follow-up Attacks . | . . Damage Inflicted 645 | 23 622 Guns 117 | 23 94 Cannons . | . . Explosions 515 | . 515 Melee . | . . Ramming 13 | . 13 Kinetic 40 | . 40 Thermal 592 | 23 569 Explosive . | . . Electromagnetic . | . . Impact . | . . Slashing . | . . Piercing . | . . Highest Corruption . | . . Average Corruption . | . . Corruption Purged . | . . Overload Shots . | . . Overflow Damage 134 | . 134 Projectiles . | . . Explosions 134 | . 134 Melee . | . . Knockbacks . | . . Impact . | . . Kinetic . | . . Secondary . | . . Self-Inflicted Damage 5 | . 5 Shots . | . . Rammed 4 | . 4 Targets Rammed 4 | . 4 Kicked . | . . Crushed . | . . Highest Temperature 60 | 18 60 Average Temperature 35 | 12 37 Received Heat Transfer 126 | . 126 Siege Activations . | . . Robots Corrupted . | . . Combat Hostiles . | . . Parts Fried . | . . Impact Corruptions . | . . Robots Melted . | . . Combat Hostiles . | . . Parts Melted 1 | . 1 Heat Transferred 425 | 50 375 Parts Sabotaged . | . . Parts Stolen . | . . Parts Stripped . | . . Power Chain Reactions . | . . Missiles Intercepted . | . . Alert | -11 -10 ------- Run | Scr Mat Peak Influence 158 | 5 158 Average Influence 106 | 4 117 Maximum Alert Level . | . . Low Security (%) 100 | 100 100 Level 1 . | . . Level 2 . | . . Level 3 . | . . Level 4 . | . . Level 5 . | . . High Security . | . . Max Security . | . . Squads Dispatched 1 | . 1 Investigation . | . . Extermination . | . . Reinforcement 1 | . 1 Assault . | . . Garrison . | . . Intercept . | . . Construction Impeded . | . . Haulers Reinforced . | . . Stealth | -11 -10 --------- Run | Scr Mat Distress Signals . | . . Communications Jammed . | . . Distress Signals . | . . Times Spotted 12 | . 12 Peak Tracking Total 5 | . 5 Tactical Retreats 1 | . 1 Traps | -11 -10 ------- Run | Scr Mat Traps Triggered 4 | . 4 Indirectly . | . . Trap Hack Attempts . | . . Triggered . | . . Disarmed . | . . Reprogrammed . | . . Reused . | . . Traps Extracted . | . . Installed . | . . Triggered . | . . Machines | -11 -10 ---------- Run | Scr Mat Machines Disabled 2 | . 2 Max in Single Turn 2 | . 2 Machines Sabotaged . | . . Garrisons Compromised . | . . Overloaded Fab Kills . | . . Fab Network Shutdowns . | . . Hacking | -11 -10 --------- Run | Scr Mat Machines Accessed 2 | . 2 Terminals 2 | . 2 Fabricators . | . . Repair Stations . | . . Recycling Units . | . . Scanalyzers . | . . Garrison Access . | . . Total Hacks 3 | . 3 Successful 3 | . 3 Failed . | . . Catastrophic . | . . Database Lockouts . | . . Manual 3 | . 3 Terminals 3 | . 3 Fabricators . | . . Repair Stations . | . . Recycling Units . | . . Scanalyzers . | . . Garrison Access . | . . Terminal Hacks . | . . Fabricator Hacks . | . . Repair Station Hacks . | . . Recycling Unit Hacks . | . . Scanalyzer . | . . Garrison Access Hacks . | . . Unauthorized Hacks 3 | . 3 Terminals 3 | . 3 Botnet 2 | . 2 Operators 1 | . 1 Fabricators . | . . Repair Stations . | . . Recycling Units . | . . Scanalyzers . | . . Garrison Access . | . . Data Cores Recovered . | . . Used . | . . Hacking Detections 1 | . 1 Full Trace Events . | . . Feedback Events . | . . Feedback Blocked . | . . Robot Schematics Acquired . | . . Robots Built . | . . Matter . | . . Time . | . . Total Robot Build Rating . | . . Part Schematics Acquired . | . . Parts Built . | . . Matter . | . . Time . | . . Total Part Build Rating . | . . Parts Repaired . | . . Time . | . . Parts Recycled . | . . Recycled Matter . | . . Retrieved Matter . | . . Retrieved Components . | . . Parts Scanalyzed . | . . Part Schematics Acquired . | . . Parts Damaged . | . . Bothacking | -11 -10 ------------ Run | Scr Mat Used RIF Installer . | . . Robots Hacked . | . . Non-combat . | . . Combat . | . . Robot Hacks Applied . | . . Relay Couplers Released . | . . Robots Rewired . | . . Allies Hacked . | . . Hacks Repelled . | . . Allies | -11 -10 -------- Run | Scr Mat Total Allies . | . . Largest Group . | . . Highest-Rated Group . | . . Highest-Rated Ally . | . . Total Orders . | . . Ally Attacks . | . . Total Damage . | . . Kills . | . . Allies Corrupted . | . . Allies Melted . | . . Intel | -11 -10 ------- Run | Scr Mat Robot Analysis Total . | . . Derelict Logs Recovered . | . . Drone Launches . | . . Drone Recoveries . | . . Exploration | -11 -10 ------------- Run | Scr Mat Turns Passed 391 | 37 354 Spaces Moved 328 | 21 307 Core 28 | . 28 Treads . | . . Legs 5 | 5 . Wheels 295 | 16 279 Hover . | . . Flight . | . . Fastest Speed 80 | 90 80 Average Speed 98 | 97 98 Slowest Speed 200 | 120 200 Overloaded Moves . | . . Propulsion Burnouts . | . . Robots Hopped . | . . Cave-ins Triggered . | . . Exploration Rate (%) 27 | 2 52 Regions Visited 1 Branch Regions . Pre-discovered Areas . | . . Known Exits Taken . | . . Unknown Exits Taken 1 | 1 . Scrap Searched . | . . Spaces Dug . | . . Terrain Destroyed 8 | . 8 Melee . | . . Projectile . | . . AOE 8 | . 8 Actions | -11 -10 --------- Run | Scr Mat Total 376 | 38 338 Wait 5 | 1 4 Move 327 | 20 307 Hop . | . . Pick Up 1 | 1 . Fast Attach 4 | 2 2 Attach 10 | 4 6 Detach 8 | 5 3 Swap . | . . Drop 4 | 4 . Fire 13 | 1 12 Melee . | . . Ram 4 | . 4 Kick . | . . Crush . | . . Escape Stasis . | . . Rewire . | . . Trap . | . . Miscellaneous . | . . Route ------- -11/Scrapyard -10/Materials (discovered 2 exits: [*Mat] / [*Min]) History --------- Turn | Location | Event 1 | -11/Scrapyard | Discovered new exit (range 2) 38 | -11/Scrapyard | Entered Materials 239 | -10/Materials | Discovered new exit (range 9) 307 | -10/Materials | Build established: Mutant 344 | -10/Materials | Discovered new exit (range 12) 376 | -10/Materials | Core integrity fell below 50% 390 | -10/Materials | Core integrity fell below 20% 392 | -10/Materials | Destroyed by S-10 Pest with Light Assault Rifle Last Messages --------------- 00205_ Sml. Laser severed. 00205_ Lgt. Treads severed. 00205_ Lgt. Assault Rifle severed. 00207_ Acquired Lgt. Ion Engine. 00209_ Triggered Blade Trap. 00209_ Massive razor-sharp blades shoot up from within the floor. 00209_ Lgt. Ion Engine severed. 00209_ Wheel severed. 00215_ Triggered Blade Trap. 00215_ Massive razor-sharp blades shoot up from within the floor. 00236_ U-05 Engineer lays Concrete. 00239_ EXIT=FOUND 00280_ Com. Wheel destroyed. 00295_ R-06 Scavenger collects Wheel. 00299_ R-06 Scavenger collects Lgt. Treads. 00300_ Slammed into R-06 Scavenger. 00344_ EXIT=FOUND 00356_ Slammed into A-02 Transporter. 00359_ Lgt. Ion Engine destroyed. 00369_ Com. Wheel destroyed. Map ----- +----------------------------------------------------+ | ?????????????????????????????? | | ?????????????????????????????? #### | | ???????????????????????????????????## ""# | | ????????????????????????????????????# ### | | ????????????????????????????????????# ??# | | ????????????????????????????????????# ??# | | ????????????????????????????????????# #?## | | ???????????????????????????????????"" #?# | | ??????????????????????????????????? #?# | | ???????????????????????????????????! #?# # | | ???????????????????????????????????" < #?# # | | ???????????????????????????????????? ??# + | | ???????????????????????????????????? ??# ### | | ????????????????????????????????????" ??# #?# | | ???????????????????????????????????## #??# #?# | | ???????????????????????????????????? #??# #?# | | ?????????????????????????????######## #??# #?# | | ?????????????????????????????# # ####+### | | ?o???????????????????????????# # # # | | ?????????????????????????????# # #= # | | ?????????????????????????????# "T" # # """# | | ?????????????????????????????# """ + + """# | | ?????????????????????????????# # # """# | | ??????????????????????############### # # | | ??????????????????????# """"" ## ######## | | ??????????????????????#@ """"" T ## #??????? | | ??????????????????????# """"" ## #??????? | | ??????????????????????# ! s ## #??????? | | ??????????????????????# sg s ## ##?????? | | ??????????????????????##########+### #####?? | | ??????????????????????????????# | #? | | ??????????????????????????????# #? | | ??????????????????????????????# #? | | ??????????????????????????????###### ## #? | | ???????????????????????????????????###+###? #? | | ?????????????????????????????????????? ???? #? | | ??????????????????????????????????????""???? | | ??????????????????????????????????????""????? ## | | ???????????????????????????????????????????????? | | ???????????????????????????????????????????????? | | ???????????????????????????????????????????????? | | ???????????????????????????????????????????????? | | ???????????????????????????????????????????????? | | ???????????????????????????????????????????????? | | ???????????????????????????????????????????????? | | ???????????????????????????????????????????????? | | ???????????????????????????????????????????????? | | ???????????????????????????????????????????????? | | | | | +----------------------------------------------------+ Best States ------------- Heat Dissipation 25 Energy Generation 10 Energy Capacity 125 Matter Stores 300 Matter Capacity 300 Sight Range 16 Terrain Scan Density 10 Evasion (%) 42 Item Schematics ----------------- None Robot Schematics ------------------ None Fabricated ------------ Nothing Alien Tech Used ----------------- None Achievements -------------- None Challenges ------------ None Game ------ Seed CompositeAntigravCapacitor Manual? 0 Play Time 00:16:24 Cumulative 11.3 hours Start 2020.07.12 @ 18:42:02 End 2020.07.12 @ 19:00:50 Sessions 1 Manual Loads 0 Difficulty Rogue Special Mode None Game No. 25 Rogue 24 Adventurer 0 Explorer 1 Win Type - Total 0 Types 0/0/0/0/0/0/0 Lore% 22 Gallery% 24 Achievement% 17 Wizard Run 0 Options --------- ASCII 0 Keyboard 1 Movement Vi Keybinds 0 Fullscreen 2 Font 24/Terminus Map View 76x50 Tactical HUD 1 Map Filters NONE Filters NONE Steam 1 RUN: 5593291c-db17-41f4-8bc7-4e3b91fbcfbd